fUSD/lending_fUSD_20240606
["ID","MTS","AMOUNT","RATE_DAILY","PERIOD"]
[328655236,1717679472518,-500.0,0.00027945,4]
[328655237,1717679472528,-500.0,0.00027945,4]
[328655238,1717679472540,-500.0,0.00027945,4]
[328655239,1717679472549,-500.0,0.00027945,4]
[328655240,1717679472559,-500.0,0.00027945,4]
[328655241,1717679472568,-500.0,0.00027945,4]
[328655242,1717679472578,-500.0,0.00027945,4]
[328655243,1717679472588,-500.0,0.00027945,4]
[328655244,1717679472597,-567.87,0.00027945,4]
[328655245,1717679472607,-500.0,0.00027945,4]
[328655246,1717679472618,-209.6207124,0.00027945,4]
[328655247,1717679472627,-500.0,0.00027945,4]
[328655248,1717679472636,-790.89,0.00027945,4]
[328655249,1717679472646,-500.0,0.00027945,4]
[328655250,1717679472655,-500.0,0.00027945,4]
[328655251,1717679472664,-604.44646398,0.00027945,4]
[328655252,1717679472674,-500.0,0.00027945,4]
[328655253,1717679472683,-553.97,0.00027945,4]
[328655254,1717679472692,-500.0,0.00027945,4]
[328655255,1717679472701,-500.0,0.00027945,4]
[328655256,1717679472710,-500.0,0.00027945,4]
[328655257,1717679472720,-500.0,0.00027945,4]
[328655258,1717679472729,-500.0,0.00027945,4]
[328655259,1717679472738,-500.0,0.00027945,4]
[328655260,1717679472747,-500.0,0.00027945,4]
[328655261,1717679472758,-500.0,0.00027945,4]
[328655262,1717679472767,-523.87021132,0.00027945,4]
[328655263,1717679472776,-500.0,0.00027945,4]
[328655264,1717679472786,-500.0,0.00027945,4]
[328655265,1717679472795,-500.0,0.00027945,4]
[328655266,1717679472806,-500.0,0.00027945,4]
[328655267,1717679472817,-531.67784882,0.00027945,4]
[328655268,1717679472827,-151.0,0.00027945,7]
[328655269,1717679472837,-500.0,0.00027945,4]
[328655270,1717679472847,-500.0,0.00027945,4]
[328655271,1717679472856,-500.0,0.00027945,4]
[328655272,1717679472865,-500.0,0.00027945,4]
[328655273,1717679472874,-500.0,0.00027945,4]
[328655274,1717679472884,-500.0,0.00027945,4]
[328655275,1717679472894,-500.0,0.00027945,2]
[328655276,1717679472903,-500.0,0.00027945,4]
[328655277,1717679472913,-500.0,0.00027945,4]
[328655278,1717679472921,-500.0,0.00027945,4]
[328655279,1717679472931,-500.0,0.00027945,4]
[328655280,1717679472940,-458.50436342,0.00027945,4]
[328655281,1717679472950,-500.0,0.00027945,4]
[328655282,1717679472959,-500.0,0.00027945,4]
[328655283,1717679472968,-281.055,0.00027945,7]
[328655284,1717679472977,-500.0,0.00027945,4]
[328655285,1717679472986,-1072.73,0.00027945,4]
[328655286,1717679472996,-500.0,0.00027945,4]
[328655287,1717679473005,-331.6796946,0.00027945,4]
[328655288,1717679473016,-500.0,0.00027945,4]
[328655289,1717679473025,-577.988313,0.00027945,4]
[328655290,1717679473034,-337.51018975,0.00027945,4]
[328655291,1717679473043,-500.0,0.00027945,4]
[328655292,1717679473052,-500.0,0.00027945,4]
[328655293,1717679473061,-500.0,0.00027945,4]
[328655294,1717679473070,-500.0,0.00027945,4]
[328655295,1717679473080,-500.0,0.00027945,4]
[328655296,1717679473089,-582.62980362,0.00027945,4]
[328655297,1717679473099,-500.0,0.00027945,4]
[328655298,1717679473108,-562.5,0.00027945,4]
[328655299,1717679473117,-500.0,0.00027945,4]
[328655300,1717679473126,-500.0,0.00027945,4]
[328655301,1717679473135,-500.0,0.00027945,4]
[328655302,1717679473144,-500.0,0.00027945,4]
[328655303,1717679473154,-500.0,0.00027945,4]
[328655304,1717679473163,-500.0,0.00027945,4]
[328655305,1717679473172,-1257.38,0.00027945,4]
[328655306,1717679473181,-500.0,0.00027945,4]
[328655307,1717679473190,-500.0,0.00027945,4]
[328655308,1717679473199,-500.0,0.00027945,4]
[328655309,1717679473208,-500.0,0.00027945,4]
[328655310,1717679473217,-594.07,0.00027945,4]
[328655311,1717679473226,-500.0,0.00027945,4]
[328655312,1717679473235,-660.28,0.00027945,4]
[328655313,1717679473243,-222.48439484,0.00027945,4]
[328655314,1717679473252,-500.0,0.00027945,2]
[328655315,1717679473263,-500.0,0.00027945,4]
[328655316,1717679473272,-500.0,0.00027945,4]
[328655317,1717679473281,-500.0,0.00027945,4]
[328655318,1717679473291,-151.0,0.00027945,7]
[328655319,1717679473304,-873.96,0.00027945,4]
[328655320,1717679473313,-151.0,0.00027945,7]
[328655321,1717679473323,-500.0,0.00027945,4]
[328655322,1717679473332,-500.0,0.00027945,4]
[328655323,1717679473342,-500.0,0.00027945,4]
[328655324,1717679473351,-500.0,0.00027945,2]
[328655325,1717679473360,-500.0,0.00027945,4]
[328655326,1717679473372,-500.0,0.00027945,4]
[328655327,1717679473380,-500.0,0.00027945,4]
[328655328,1717679473390,-511.58910398,0.00027945,4]
[328655329,1717679473399,-570.05,0.00027945,4]
[328655330,1717679473409,-237.57288494,0.00027945,4]
[328655331,1717679473418,-500.0,0.00027945,4]
[328655332,1717679473428,-500.0,0.00027945,4]
[328655333,1717679473437,-1167.65,0.00027945,4]
[328655334,1717679473447,-557.2597746,0.00027945,4]
[328655335,1717679473456,-500.0,0.00027945,4]
[328655336,1717679473466,-500.0,0.00027945,4]
[328655337,1717679473475,-1040.77,0.00027945,4]
[328655338,1717679473484,-500.0,0.00027945,4]
[328655339,1717679473493,-500.0,0.00027945,4]
[328655340,1717679473502,-730.53,0.00027945,4]
[328655341,1717679473513,-500.0,0.00027945,4]
[328655342,1717679473521,-500.0,0.00027945,4]
[328655343,1717679473530,-500.0,0.00027945,4]
[328655344,1717679473540,-500.0,0.00027945,4]
[328655345,1717679473548,-500.0,0.00027945,4]
[328655346,1717679473557,-500.0,0.00027945,4]
[328655347,1717679473566,-500.0,0.00027945,4]
[328655348,1717679473575,-1160.4,0.00027945,4]
[328655349,1717679473585,-500.0,0.00027945,4]
[328655350,1717679473594,-500.0,0.00027945,4]
[328655351,1717679473603,-500.0,0.00027945,4]
[328655352,1717679473612,-609.43514089,0.00027945,4]
[328655353,1717679473621,-500.0,0.00027945,4]
[328655354,1717679473630,-500.0,0.00027945,4]
[328655355,1717679473639,-1005.2,0.00027945,4]
[328655356,1717679473648,-500.0,0.00027945,4]
[328655357,1717679473657,-500.0,0.00027945,4]
[328655358,1717679473666,-295.471963,0.00027945,7]
[328655359,1717679473675,-295.471963,0.00027945,7]
[328655360,1717679473684,-500.0,0.00027945,4]
[328655361,1717679473693,-500.0,0.00027945,4]
[328655362,1717679473703,-500.0,0.00027945,4]
[328655363,1717679473712,-295.471963,0.00027945,7]
[328655364,1717679473721,-295.471963,0.00027945,7]
[328655365,1717679473730,-500.0,0.00027945,4]
[328655366,1717679473739,-500.0,0.00027945,4]
[328655367,1717679473749,-543.83,0.00027945,4]
[328655368,1717679473759,-953.7,0.00027945,4]
[328655369,1717679473768,-155.47889368,0.00027945,4]
[328655370,1717679473779,-500.0,0.00027945,4]
[328655371,1717679473788,-500.0,0.00027945,4]
[328655372,1717679473797,-500.0,0.00027945,4]
[328655373,1717679473806,-500.0,0.00027945,4]
[328655374,1717679473815,-500.0,0.00027945,4]
[328655375,1717679473824,-714.89,0.00027945,4]
[328655376,1717679473833,-537.3,0.00027945,4]
[328655377,1717679473842,-500.0,0.00027945,4]
[328655378,1717679473852,-500.0,0.00027945,4]
[328655379,1717679473861,-151.0,0.00027945,7]
[328655380,1717679473870,-151.0,0.00027945,7]
[328655381,1717679473879,-500.0,0.00027945,4]
[328655382,1717679473888,-500.0,0.00027945,4]
[328655383,1717679473898,-500.0,0.00027945,4]
[328655384,1717679473907,-1078.37,0.00027945,4]
[328655385,1717679473916,-500.0,0.00027945,4]
[328655386,1717679473926,-500.0,0.00027945,4]
[328655387,1717679473935,-655.81,0.00027945,4]
[328655388,1717679473944,-500.0,0.00027945,4]
[328655389,1717679473953,-500.0,0.00027945,4]
[328655390,1717679473962,-500.0,0.00027945,4]
[328655391,1717679473971,-500.0,0.00027945,4]
[328655392,1717679473980,-541.66,0.00027945,4]
[328655393,1717679473989,-500.0,0.00027945,4]
[328655394,1717679473998,-500.0,0.00027945,4]
[328655395,1717679474009,-632.72,0.00027945,4]
[328655396,1717679474018,-500.0,0.00027945,4]
[328655397,1717679474028,-500.0,0.00027945,4]
[328655398,1717679474037,-500.0,0.00027945,4]
[328655399,1717679474046,-500.0,0.00027945,4]
[328655400,1717679474055,-540.85,0.00027945,4]
[328655401,1717679474064,-500.0,0.00027945,4]
[328655402,1717679474074,-250.0,0.00027945,4]
[328655403,1717679474083,-500.0,0.00027945,4]
[328655404,1717679474092,-500.0,0.00027945,4]
[328655405,1717679474101,-500.0,0.00027945,4]
[328655406,1717679474110,-500.0,0.00027945,4]
[328655407,1717679474119,-520.09290025,0.00027945,4]
[328655408,1717679474128,-500.0,0.00027945,4]
[328655409,1717679474138,-500.0,0.00027945,4]
[328655410,1717679474148,-500.0,0.00027945,4]
[328655411,1717679474157,-500.0,0.00027945,4]
[328655412,1717679474166,-1540.24,0.00027945,4]
[328655413,1717679474175,-500.0,0.00027945,4]
[328655414,1717679474185,-256.36,0.00027945,4]
[328655415,1717679474194,-616.01,0.00027945,4]
[328655416,1717679474203,-500.0,0.00027945,4]
[328655417,1717679474212,-500.0,0.00027945,4]
[328655418,1717679474221,-544.49013564,0.00027945,4]
[328655419,1717679474230,-500.0,0.00027945,4]
[328655420,1717679474239,-631.52,0.00027945,4]
[328655421,1717679474248,-500.0,0.00027945,4]
[328655422,1717679474258,-500.0,0.00027945,4]
[328655423,1717679474267,-500.0,0.00027945,4]
[328655424,1717679474276,-3814.34,0.00027945,4]
[328655425,1717679474286,-500.0,0.00027945,4]
[328655426,1717679474299,-179.451419,0.00027945,7]
[328655427,1717679474308,-179.451419,0.00027945,7]
[328655428,1717679474317,-500.0,0.00027945,4]
[328655429,1717679474327,-500.0,0.00027945,4]
[328655430,1717679474337,-500.0,0.00027945,4]
[328655431,1717679474346,-500.0,0.00027945,4]
[328655432,1717679474356,-500.0,0.00027945,4]
[328655433,1717679474365,-500.0,0.00027945,4]
[328655434,1717679474376,-500.0,0.00027945,4]
[328655435,1717679474386,-179.451419,0.00027945,7]
[328655436,1717679474395,-179.451419,0.00027945,7]
[328655437,1717679474403,-833.49,0.00027945,4]
[328655438,1717679474413,-557.94940384,0.00027945,4]
[328655439,1717679474422,-500.0,0.00027945,4]
[328655440,1717679474431,-500.0,0.00027945,4]
[328655441,1717679474440,-500.0,0.00027945,4]
[328655442,1717679474450,-644.57,0.00027945,4]
[328655443,1717679474459,-500.0,0.00027945,4]
[328655444,1717679474468,-616.57384125,0.00027945,4]
[328655445,1717679474477,-500.0,0.00027945,4]
[328655446,1717679474486,-1007.24,0.00027945,4]
[328655447,1717679474495,-500.0,0.00027945,4]
[328655448,1717679474504,-500.0,0.00027945,4]
[328655449,1717679474515,-500.0,0.00027945,4]
[328655450,1717679474524,-515.78297051,0.00027945,4]
[328655451,1717679474533,-1055.19,0.00027945,4]
[328655452,1717679474542,-592.62968883,0.00027945,4]
[328655453,1717679474551,-875.26,0.00027945,4]
[328655454,1717679474560,-500.0,0.00027945,4]
[328655455,1717679474570,-500.0,0.00027945,4]
[328655456,1717679474579,-151.0,0.00027945,7]
[328655457,1717679474588,-190.334989,0.00027945,7]
[328655458,1717679474597,-500.0,0.00027945,4]
[328655459,1717679474607,-500.0,0.00027945,4]
[328655460,1717679474616,-500.0,0.00027945,4]
[328655461,1717679474626,-629.36484932,0.00027945,4]
[328655462,1717679474636,-268.44251457,0.00027945,4]
[328655463,1717679474645,-500.0,0.00027945,4]
[328655464,1717679474654,-500.0,0.00027945,4]
[328655465,1717679474664,-531.26113446,0.00027945,4]
[328655466,1717679474674,-561.44,0.00027945,4]
[328655467,1717679474683,-500.0,0.00027945,4]
[328655468,1717679474694,-759.25,0.00027945,4]
[328655469,1717679474704,-500.0,0.00027945,4]
[328655470,1717679474713,-500.0,0.00027945,4]
[328655471,1717679474724,-500.0,0.00027945,4]
[328655472,1717679474734,-544.17,0.00027945,4]
[328655473,1717679474743,-500.0,0.00027945,4]
[328655474,1717679474754,-512.48170927,0.00027945,4]
[328655475,1717679474764,-500.0,0.00027945,4]
[328655476,1717679474773,-500.0,0.00027945,4]
[328655477,1717679474782,-500.0,0.00027945,4]
[328655478,1717679474792,-500.0,0.00027945,4]
[328655479,1717679474802,-500.0,0.00027945,4]
[328655480,1717679474811,-754.39,0.00027945,4]
[328655481,1717679474821,-500.0,0.00027945,4]
[328655482,1717679474830,-500.0,0.00027945,4]
[328655483,1717679474840,-852.58,0.00027945,4]
[328655484,1717679474850,-500.0,0.00027945,4]
[328655485,1717679474860,-500.0,0.00027945,4]
[328655486,1717679474869,-222.98131852,0.00027945,4]
[328655487,1717679474879,-574.56,0.00027945,4]
[328655488,1717679474889,-500.0,0.00027945,4]
[328655489,1717679474899,-623.99,0.00027945,4]
[328655490,1717679474908,-618.6,0.00027945,4]
[328655491,1717679474918,-500.0,0.00027945,4]
[328655492,1717679474927,-500.0,0.00027945,4]
[328655493,1717679474937,-735.41,0.00027945,4]
[328655494,1717679474946,-500.0,0.00027945,4]
[328655495,1717679474956,-500.0,0.00027945,4]
[328655496,1717679474965,-500.0,0.00027945,4]
[328655497,1717679474975,-500.0,0.00027945,4]
[328655498,1717679474984,-515.29,0.00027945,4]
[328655499,1717679474994,-500.0,0.00027945,4]
[328655500,1717679475003,-604.46,0.00027945,4]
[328655501,1717679475016,-555.07476411,0.00027945,4]
[328655502,1717679475025,-510.06095432,0.00027945,4]
[328655503,1717679475035,-221.55090503,0.00027945,4]
[328655504,1717679475045,-500.0,0.00027945,4]
[328655505,1717679475054,-500.0,0.00027945,4]
[328655506,1717679475064,-624.01,0.00027945,4]
[328655507,1717679475073,-500.0,0.00027945,4]
[328655508,1717679475083,-500.0,0.00027945,4]
[328655509,1717679475093,-701.26,0.00027945,4]
[328655510,1717679475102,-500.0,0.00027945,4]
[328655511,1717679475112,-500.0,0.00027945,4]
[328655512,1717679475122,-949.7,0.00027945,4]
[328655513,1717679475132,-500.0,0.00027945,4]
[328655514,1717679475142,-500.0,0.00027945,4]
[328655515,1717679475151,-542.47952555,0.00027945,4]
[328655516,1717679475161,-500.0,0.00027945,4]
[328655517,1717679475170,-507.14615604,0.00027945,4]
[328655518,1717679475180,-500.0,0.00027945,4]
[328655519,1717679475190,-500.0,0.00027945,4]
[328655520,1717679475200,-500.0,0.00027945,4]
[328655521,1717679475209,-507.21650024,0.00027945,4]
[328655522,1717679475219,-500.0,0.00027945,4]
[328655523,1717679475229,-500.0,0.00027945,4]
[328655524,1717679475238,-530.98788086,0.00027945,4]
[328655525,1717679475247,-500.0,0.00027945,4]
[328655526,1717679475460,-500.0,0.00027945,4]
[328655527,1717679475488,-652.57,0.00027945,4]
[328655528,1717679475499,-624.92,0.00027945,4]
[328655529,1717679475510,-500.0,0.00027945,4]
[328655530,1717679475519,-500.0,0.00027945,4]
[328655531,1717679475528,-500.0,0.00027945,4]
[328655532,1717679475537,-500.0,0.00027945,4]
[328655533,1717679475546,-500.0,0.00027945,4]
[328655534,1717679475556,-500.0,0.00027945,4]
[328655535,1717679475566,-500.0,0.00027945,4]
[328655536,1717679475576,-500.0,0.00027945,4]
[328655537,1717679475586,-500.0,0.00027945,4]
[328655538,1717679475595,-500.0,0.00027945,4]
[328655539,1717679475604,-618.54968963,0.00027945,4]
[328655540,1717679475613,-592.96593251,0.00027945,4]
[328655541,1717679475623,-269.777891,0.00027945,7]
[328655542,1717679475632,-500.0,0.00027945,4]
[328655543,1717679475642,-500.0,0.00027945,4]
[328655544,1717679475652,-500.0,0.00027945,4]
[328655545,1717679475661,-269.777891,0.00027945,7]
[328655546,1717679475671,-694.2,0.00027945,4]
[328655547,1717679475680,-500.0,0.00027945,4]
[328655548,1717679475690,-500.0,0.00027945,4]
[328655549,1717679475699,-500.0,0.00027945,4]
[328655550,1717679475708,-151.0,0.00027945,7]
[328655551,1717679475717,-500.0,0.00027945,4]
[328655552,1717679475726,-2878.4,0.00027945,4]
[328655553,1717679475735,-500.0,0.00027945,4]
[328655554,1717679475744,-534.4,0.00027945,2]
[328655555,1717679475754,-500.0,0.00027945,4]
[328655556,1717679475765,-694.35,0.00027945,4]
[328655557,1717679475775,-543.75,0.00027945,4]
[328655558,1717679475784,-500.0,0.00027945,4]
[328655559,1717679475794,-500.0,0.00027945,4]
[328655560,1717679475804,-500.0,0.00027945,4]
[328655561,1717679475814,-500.0,0.00027945,4]
[328655562,1717679475823,-500.0,0.00027945,4]
[328655563,1717679475833,-500.0,0.00027945,4]
[328655564,1717679475842,-500.0,0.00027945,4]
[328655565,1717679475852,-548.67658548,0.00027945,4]
[328655566,1717679475862,-417.14539328,0.00027945,4]
[328655567,1717679475871,-500.0,0.00027945,4]
[328655568,1717679475880,-500.0,0.00027945,4]
[328655569,1717679475889,-561.63,0.00027945,4]
[328655570,1717679475898,-777.5,0.00027945,4]
[328655571,1717679475907,-500.0,0.00027945,4]
[328655572,1717679475917,-500.0,0.00027945,4]
[328655573,1717679475926,-728.03,0.00027945,4]
[328655574,1717679475935,-151.0,0.00027945,7]
[328655575,1717679475944,-500.0,0.00027945,4]
[328655576,1717679475954,-500.0,0.00027945,4]
[328655577,1717679475963,-516.42579647,0.00027945,14]
[328655578,1717679475972,-525.97,0.00027945,4]
[328655579,1717679475981,-500.0,0.00027945,4]
[328655580,1717679475990,-500.0,0.00027945,4]
[328655581,1717679475999,-500.0,0.00027945,4]
[328655582,1717679476008,-835.99,0.00027945,4]
[328655583,1717679476019,-500.0,0.00027945,4]
[328655584,1717679476028,-500.0,0.00027945,4]
[328655585,1717679476038,-561.54273942,0.00027945,4]
[328655586,1717679476047,-500.0,0.00027945,4]
[328655587,1717679476056,-1147.48,0.00027945,4]
[328655588,1717679476066,-500.0,0.00027945,4]
[328655589,1717679476075,-503.17,0.00027945,4]
[328655590,1717679476085,-500.0,0.00027945,4]
[328655591,1717679476094,-500.0,0.00027945,4]
[328655592,1717679476103,-563.20035354,0.00027945,4]
[328655593,1717679476113,-253.527959,0.00027945,7]
[328655594,1717679476122,-505.84,0.00027945,4]
[328655595,1717679476131,-253.527959,0.00027945,7]
[328655596,1717679476141,-500.0,0.00027945,4]
[328655597,1717679476150,-404.39217027,0.00027945,4]
[328655598,1717679476159,-687.52,0.00027945,4]
[328655599,1717679476169,-554.36224414,0.00027945,4]
[328655600,1717679476178,-500.0,0.00027945,4]
[328655601,1717679476187,-500.0,0.00027945,4]
[328655602,1717679476196,-557.11,0.00027945,4]
[328655603,1717679476206,-500.0,0.00027945,4]
[328655604,1717679476215,-500.0,0.00027945,4]
[328655605,1717679476226,-500.0,0.00027945,4]
[328655606,1717679476235,-259.94,0.00027945,4]
[328655607,1717679476244,-500.0,0.00027945,4]
[328655608,1717679476253,-500.0,0.00027945,4]
[328655609,1717679476264,-622.96,0.00027945,4]
[328655610,1717679476274,-500.0,0.00027945,4]
[328655611,1717679476283,-500.0,0.00027945,4]
[328655612,1717679476293,-610.82,0.00027945,4]
[328655613,1717679476306,-772.9,0.00027945,4]
[328655614,1717679476316,-500.0,0.00027945,4]
[328655615,1717679476325,-500.0,0.00027945,4]
[328655616,1717679476335,-246.401026,0.00027945,7]
[328655617,1717679476345,-541.03174083,0.00027945,4]
[328655618,1717679476354,-500.0,0.00027945,4]
[328655619,1717679476363,-500.0,0.00027945,4]
[328655620,1717679476374,-569.11432421,0.00027945,4]
[328655621,1717679476383,-500.0,0.00027945,4]
[328655622,1717679476393,-246.401026,0.00027945,7]
[328655623,1717679476402,-500.0,0.00027945,4]
[328655624,1717679476411,-500.0,0.00027945,4]
[328655625,1717679476420,-500.0,0.00027945,4]
[328655626,1717679476429,-500.0,0.00027945,4]
[328655627,1717679476439,-500.0,0.00027945,4]
[328655628,1717679476448,-500.0,0.00027945,4]
[328655629,1717679476457,-605.06,0.00027945,4]
[328655630,1717679476467,-500.0,0.00027945,4]
[328655631,1717679476476,-576.66,0.00027945,4]
[328655632,1717679476486,-627.8072162,0.00027945,4]
[328655633,1717679476495,-562.8775538,0.00027945,4]
[328655634,1717679476505,-505.74,0.00027945,4]
[328655635,1717679476515,-500.0,0.00027945,4]
[328655636,1717679476524,-500.0,0.00027945,4]
[328655637,1717679476533,-876.11,0.00027945,2]
[328655638,1717679476543,-500.0,0.00027945,4]
[328655639,1717679476552,-500.0,0.00027945,4]
[328655640,1717679476562,-500.0,0.00027945,4]
[328655641,1717679476571,-500.0,0.00027945,4]
[328655642,1717679476581,-500.0,0.00027945,4]
[328655643,1717679476590,-500.0,0.00027945,4]
[328655644,1717679476599,-988.28,0.00027945,4]
[328655645,1717679476608,-598.37,0.00027945,4]
[328655646,1717679476618,-500.0,0.00027945,4]
[328655647,1717679476627,-500.0,0.00027945,4]
[328655648,1717679476636,-500.0,0.00027945,4]
[328655649,1717679476646,-608.21114252,0.00027945,4]
[328655650,1717679476655,-660.45,0.00027945,4]
[328655651,1717679476664,-500.0,0.00027945,4]
[328655652,1717679476674,-500.0,0.00027945,4]
[328655653,1717679476683,-386.34814575,0.00027945,4]
[328655654,1717679476692,-500.0,0.00027945,4]
[328655655,1717679476702,-151.0,0.00027945,7]
[328655656,1717679476711,-500.0,0.00027945,4]
[328655657,1717679476720,-151.0,0.00027945,7]
[328655658,1717679476729,-500.0,0.00027945,4]
[328655659,1717679476738,-500.0,0.00027945,4]
[328655660,1717679476747,-500.0,0.00027945,4]
[328655661,1717679476756,-500.0,0.00027945,4]
[328655662,1717679476769,-500.0,0.00027945,4]
[328655663,1717679476778,-500.0,0.00027945,4]
[328655664,1717679476787,-500.0,0.00027945,4]
[328655665,1717679476796,-500.0,0.00027945,4]
[328655666,1717679476805,-500.0,0.00027945,4]
[328655667,1717679476815,-500.0,0.00027945,4]
[328655668,1717679476825,-500.0,0.00027945,4]
[328655669,1717679476834,-500.0,0.00027945,4]
[328655670,1717679476843,-500.0,0.00027945,4]
[328655671,1717679476853,-151.0,0.00027945,7]
[328655672,1717679476862,-151.0,0.00027945,7]
[328655673,1717679476871,-715.91,0.00027945,4]
[328655674,1717679476880,-9815.91,0.00027945,4]
[328655675,1717679476890,-500.0,0.00027945,4]
[328655676,1717679476899,-500.0,0.00027945,4]
[328655677,1717679476909,-500.0,0.00027945,4]
[328655678,1717679476918,-500.0,0.00027945,4]
[328655679,1717679476927,-648.22,0.00027945,4]
[328655680,1717679476936,-500.0,0.00027945,4]
[328655681,1717679476946,-500.0,0.00027945,4]
[328655682,1717679476955,-500.0,0.00027945,4]
[328655683,1717679476964,-1195.32,0.00027945,4]
[328655684,1717679476974,-500.0,0.00027945,4]
[328655685,1717679476983,-500.0,0.00027945,4]
[328655686,1717679476992,-964.57,0.00027945,4]
[328655687,1717679477002,-500.0,0.00027945,4]
[328655688,1717679477011,-151.0,0.00027945,7]
[328655689,1717679477025,-500.0,0.00027945,4]
[328655690,1717679477035,-151.0,0.00027945,7]
[328655691,1717679477047,-566.42,0.00027945,4]
[328655692,1717679477056,-896.47,0.00027945,4]
[328655693,1717679477067,-500.0,0.00027945,4]
[328655694,1717679477076,-500.0,0.00027945,4]
[328655695,1717679477086,-151.0,0.00027945,7]
[328655696,1717679477095,-167.651178,0.00027945,7]
[328655697,1717679477105,-702.81,0.00027945,4]
[328655698,1717679477115,-1815.88,0.00027945,4]
[328655699,1717679477125,-500.0,0.00027945,4]
[328655700,1717679477135,-500.0,0.00027945,4]
[328655701,1717679477144,-3495.31,0.00027945,4]
[328655702,1717679477154,-500.0,0.00027945,4]
[328655703,1717679477164,-500.0,0.00027945,4]
[328655704,1717679477173,-500.0,0.00027945,4]
[328655705,1717679477182,-500.0,0.00027945,4]
[328655706,1717679477192,-500.0,0.00027945,4]
[328655707,1717679477204,-500.0,0.00027945,4]
[328655708,1717679477217,-151.0,0.00027945,7]
[328655709,1717679477227,-500.0,0.00027945,4]
[328655710,1717679477236,-151.0,0.00027945,7]
[328655711,1717679477246,-500.0,0.00027945,4]
[328655712,1717679477256,-500.0,0.00027945,4]
[328655713,1717679477267,-2493.42,0.00027945,4]
[328655714,1717679477276,-500.0,0.00027945,4]
[328655715,1717679477286,-500.0,0.00027945,4]
[328655716,1717679477298,-753.07,0.00027945,4]
[328655717,1717679477308,-500.0,0.00027945,4]
[328655718,1717679477317,-2852.08,0.00027945,4]
[328655719,1717679477328,-500.0,0.00027945,4]
[328655720,1717679477338,-500.0,0.00027945,4]
[328655721,1717679477349,-500.0,0.00027945,4]
[328655722,1717679477359,-500.0,0.00027945,4]
[328655723,1717679477372,-500.0,0.00027945,4]
[328655724,1717679477382,-500.0,0.00027945,4]
[328655725,1717679477391,-500.0,0.00027945,4]
[328655726,1717679477401,-500.0,0.00027945,4]
[328655727,1717679477411,-500.0,0.00027945,4]
[328655728,1717679477420,-500.0,0.00027945,4]
[328655729,1717679477430,-771.5,0.00027945,4]
[328655730,1717679477439,-500.0,0.00027945,4]
[328655731,1717679477448,-500.0,0.00027945,4]
[328655732,1717679477458,-1734.18,0.00027945,4]
[328655733,1717679477468,-759.84,0.00027945,4]
[328655734,1717679477477,-619.91,0.00027945,4]
[328655735,1717679477487,-500.0,0.00027945,4]